Workbook

Sheet Sheet1
N1: Return On Investment Calculator | AY1: 4417despairMt
N4: based on an increase of yield and a reduction of labor, scrap and mold damage
A6: Company | Y6: Workcell ID | AV6: This form is provided by Yushin America as an example of calculating the Return on Investment of capital equipment.
A7: Location | AW7: It is not a guarantee of actual results. Yushin is not responsible for accuracy of the data input or content.
A8: Contact name | Y8: Proposal number | AN8: Date
A9: Contact phone | Y9: Robot manufacturer | AV9: Use of this form:
A10: Contact e-mail | Y10: Robot model | AW10: TEXT DATA
Y11: Additional equipment | AX11: Enter data in those cells highlighted in light green.
A12: Data provided by | Q12: Date | AX12: Although inclusion of all data in the fields is not required, it may prove helpful when reviewing multiple printed copies.
A13: Data entered by | Q13: Date | AX13: To easily reset all manually inputted text fields to their blank condition, click the "Clear Text Data" button.
A15: Sales contact organization | Y15: Sales contact phone | AW15: CALCULATION DATA
A16: Sales contact name | Y16: Sales contact e-mail | AX16: Enter data in those cells highlighted in light green.
AX17: If the capital, installation and other costs are entered before the data, the estimated savings will update with each relevant entry.
Q18: OPERATION | X18: CURRENT | AB18: EXPECTED | AG18: ESTIMATED SAVINGS | AX18: Although inclusion of all data in the fields is not required, the more data provided will enable more accurate results.
Q19: number of operators | AB19: =+X19 -> 0 | AG19: Incr. yield | AK19: =+Calcs!L11 ->  | AX19: The formula in the expected overall cycle field can be overtyped.
Q20: hrs / operator / week | AB20: =+X20 -> 0 | AG20: Decr. labor | AK20: =+Calcs!L10 -> 0 | AX20: To easily reset all manually inputted data fields to their blank condition, click the "Reset Calculations" button.
A21: profit result after 1 year | F21: profit result after 2 years | K21: profit result after 3 years | Q21: burdened labor $ / hr | AB21: =+X21 -> 0 | AG21: Decr. scrap | AK21: =+Calcs!L9 -> 
Q22: weeks / year | AB22: =+X22 -> 0 | AG22: Decr. Damage | AK22: =+Calcs!L8 -> 
A23: =+Calcs!L15 ->  | F23: =+Calcs!L16 ->  | K23: =+Calcs!L17 ->  | Q23: total machine hrs / wk | X23: =+X19*X20 -> 0 | AB23: =+X23 -> 0 | AG23: Total First Year Savings | AK23: =SUM(AK19:AN22) -> 
Q24: workcell productivity % | AB24: =+X24 -> 0
A25: ESTIMATED EXPENSES | Q25: number of cavities | AB25: =+X25 -> 0
A26: Equipment costs | Q26: part cost ($ / 1,000) | AB26: =+X26 -> 0 | AG26: months to pay-off | AK26: =+Calcs!L21 -> 
A27: Installation costs | Q27: part sell price ($ / 1,000) | AB27: =+X27 -> 0
A28: Facility costs | Q28: mold open (seconds)
A29: Training costs | Q29: overall cycle (seconds) | AB29: =+X29-(X28-AB28) -> 0
A30: Other costs | Q30: scrap %
A31: TOTAL COSTS | K31: =SUM(K26:O30) -> 0 | Q31: scrap disposal ($/1000) | AB31: =+X31 -> 0
Q32: mold damage
A33: INSTRUCTIONS | Q33: lost production hours due to mold damage
Q36: Yushin America, Inc.
Q37: 35 Kenney Drive
Q38: Cranston, RI 02920 USA
Q39: 401 463-1800 www.yushinamerica.com
A41: The information contained within this document is an example of an ROI calculation.
A42: The actual payback shown is an estimate based upon the information provided and is not guaranteed.
AX43: 4177mtdespair

Sheet Sheet2 (hidden)
B4: PROFITS FROM ADDITIONAL YIELD | C4: current | D4: expected | E4: current | F4: expected
B5: parts cost ( $ / 1,000) | C5: 10.55 | D5: =+C5 -> 10.55 | E5: =+C5 -> 10.55 | F5: 10.55
B6: part sell price ( $ / 1,000) | C6: 12.1212 | D6: =+C6 -> 12.1212 | E6: 12.1212 | F6: 12.1212
B7: number of cavities | C7: 8 | D7: =+C7 -> 8 | E7: 8 | F7: 8
B8: total machine hours per week | C8: 45 | D8: =+C8 -> 45 | E8: 45 | F8: 45
B9: weeks per year | C9: 51 | D9: 51 | E9: 51 | F9: 51
B10: overall cycle time | C10: 16 | D10: 14 | E10: 16 | F10: 14
B11: workcell productivity percentage | C11: 0.975 | D11: 0.98 | E11: 0.975 | F11: 0.98
B12: cycles per hour | E12: =(60*60)/E10 -> 225 | F12: =(60*60)/F10 -> 257.1428571
B13: parts per hour | E13: =+E7*E12 -> 1800 | F13: =+F7*F12 -> 2057.142857
B14: parts per year at 100% productivity | E14: =+E8*E9*E13 -> 4131000 | F14: =+F8*F9*F13 -> 4721142.857
B15: parts per year at workcell productivity | E15: =+E11*E14 -> 4027725 | F15: =+F11*F14 -> 4626720
B16: part profitability per year | E16: =(+E6-E5)*E15 -> 6328361.52 | F16: =(+F6-F5)*F15 -> 7269502.464
B18: ADDITIONAL PARTS PROFIT | C18: =+F16-E16 -> 941140.944
B22: LABOR SAVINGS | C22: current | D22: expected | E22: current | F22: expected
B23: number of operators | C23: 1 | D23: =+C23 -> 1 | E23: =+C23 -> 1 | F23: 1
B24: hours per operator per week | C24: 45 | D24: 40 | E24: 45 | F24: 40
B25: weeks per year | C25: =+C9 -> 51 | D25: =+D9 -> 51 | E25: 51 | F25: 51
B26: full burdened labor cost per hour | C26: 18.5 | D26: =+C26 -> 18.5 | E26: 18.5 | F26: 18.5
B27: labor hours per year | E27: =+E23*E24*E25 -> 2295 | F27: =+F23*F24*F25 -> 2040
B28: labor dollars per year | E28: =+E26*E27 -> 42457.5 | F28: =+F26*F27 -> 37740
B30: TOTAL LABOR SAVINGS | C30: =+E28-F28 -> 4717.5
B34: SCRAP COSTS | C34: current | D34: expected | E34: current | F34: expected
B35: parts cost ( $ / 1,000) | C35: =+C5 -> 10.55 | D35: =+C35 -> 10.55 | E35: =+C35 -> 10.55 | F35: 10.55
B36: part sell price ( $ / 1,000) | C36: =+C6 -> 12.1212 | D36: =+D6 -> 12.1212 | E36: 12.1212 | F36: 12.1212
B37: percentage of scrap | C37: 0.0475 | D37: 0.0175 | E37: 0.0475 | F37: 0.0175
B38: cost to dispose of scrap ($/1000) | C38: 8.5 | D38: =+C38 -> 8.5 | E38: 8.5 | F38: 8.5
B39: number of cavities | C39: =+C7 -> 8 | D39: 8 | E39: 8 | F39: 8
B40: total machine hours per week | C40: 45 | D40: 45 | E40: 45 | F40: 45
B41: weeks per year | C41: 51 | D41: 51 | E41: 51 | F41: 51
B42: overall cycle time (seconds) | C42: 16 | D42: 14 | E42: 16 | F42: 14
B43: cycles per hour | E43: =(60*60)/E42 -> 225 | F43: =(60*60)/F42 -> 257.1428571
B44: parts per hour | E44: =+E39*E43 -> 1800 | F44: =+F39*F43 -> 2057.142857
B45: parts per year | E45: =+E40*E41*E44 -> 4131000 | F45: =+F40*F41*F44 -> 4721142.857
B46: scrapped parts per year | E46: =+E37*E45 -> 196222.5 | F46: =+F37*F45 -> 82620
B47: lost profit of scrapped parts per year | E47: =((+E36-E35)*E46)/1000 -> 308.304792 | F47: =((+F36-F35)*F46)/1000 -> 129.812544
B48: cost to dispose of scrap | E48: =(+E46/1000)*E38 -> 1667.89125 | F48: =(+F46/1000)*F38 -> 702.27
B50: TOTAL COST DUE TO SCRAP | C50: =(+E47+E48)-(F47+F48) -> 1144.113498
B54: REPAIR COSTS | C54: current | D54: expected | E54: current | F54: expected
B55: mold damage (dollars) | C55: 5000 | D55: 150 | E55: =+C55 -> 5000 | F55: 150
B56: lost production hours due to mold damage | C56: 24 | D56: 0 | E56: 24 | F56: 0
B57: number of cavities | C57: =+C7 -> 8 | D57: =+D7 -> 8 | E57: 8 | F57: 8
B58: parts cost ( $ / 1,000) | C58: 10.55 | D58: =+C58 -> 10.55 | E58: 10.55 | F58: 10.55
B59: part sell price ( $ / 1,000) | C59: 12.1212 | D59: =+C59 -> 12.1212 | E59: 12.1212 | F59: 12.1212
B60: overall cycle time (seconds) | C60: 16 | D60: 14 | E60: 16 | F60: 14
B61: profit per 1,000 parts | E61: =+E59-E58 -> 1.5712 | F61: =+F59-F58 -> 1.5712
B62: profit per cycle | E62: =(+E57*E61)/1000 -> 0.0125696 | F62: =(+F57*F61)/1000 -> 0.0125696
B63: cycles per hour | E63: =(60*60)/E60 -> 225 | F63: =(60*60)/F60 -> 257.1428571
B64: parts per hour | E64: =+E57*E63 -> 1800 | F64: =+F57*F63 -> 2057.142857
B65: lost parts due to mold damage | E65: =+E56*E64 -> 43200 | F65: =+F56*F64 -> 0
B66: lost profit due to mold damage | E66: =(+E61/1000)*E65 -> 67.87584 | F66: =(+F61/1000)*F65 -> 0
B68: TOTAL COST DUE TO MOLD DAMAGE | C68: =+E55+E66-F55 -> 4917.87584

Sheet Calcs (hidden)
A3: R | B3: S | C3: L | D3: P | E3: I | F3: U | H3: current | I3: expected | K3: RETURN ON INVESTMENT | N3: PROFITS FROM ADDITIONAL PRODUCTS | O3: current | P3: expected | R3: LABOR SAVINGS | S3: current | T3: expected | V3: SCRAP COSTS | W3: current | X3: expected | Z3: REPAIR COSTS | AA3: current | AB3: expected | AD3: MACHINE UTILIZATION | AE3: current | AF3: expected
G4: number of operators | H4: =+Sheet1!X19 -> 0 | I4: =+Sheet1!AB19 -> 0 | N4: parts cost ( $ / 1,000) | O4: =+H10/1000 -> 0 | P4: =+I10/1000 -> 0 | R4: number of operators | S4: =+H4 -> 0 | T4: =+I4 -> 0 | V4: parts cost ( $ / 1,000) | W4: =+H10/1000 -> 0 | X4: =+I10/1000 -> 0 | Z4: mold damage (dollars) | AA4: =+H18 -> 0 | AB4: =+I18 -> 0 | AD4: dollars per machine hour | AE4: =+H19 -> 0 | AF4: =+I19 -> 0
G5: hours per operator per week | H5: =+Sheet1!X20 -> 0 | I5: =+Sheet1!AB20 -> 0 | N5: part sell price ( $ / 1,000) | O5: =+H11/1000 -> 0 | P5: =+I11/1000 -> 0 | R5: hours per operator per week | S5: =+H5 -> 0 | T5: =+I5 -> 0 | V5: part sell price ( $ / 1,000) | W5: =+H11/1000 -> 0 | X5: =+I11/1000 -> 0 | Z5: lost production hours due to mold damage | AA5: =+H17 -> 0 | AB5: =+I17 -> 0 | AD5: total machine hours per week | AE5: =+H7 -> 0 | AF5: =+I7 -> 0
G6: full burdened labor cost per hour | H6: =+Sheet1!X21 -> 0 | I6: =+Sheet1!AB21 -> 0 | N6: number of cavities | O6: =+H9 -> 0 | P6: =+I9 -> 0 | R6: weeks per year | S6: =+H8 -> 0 | T6: =+I8 -> 0 | V6: percentage of scrap | W6: =+H15 -> 0 | X6: =+I15 -> 0 | Z6: number of cavities | AA6: =+H9 -> 0 | AB6: =+AA6 -> 0 | AD6: weeks per year | AE6: =+H8 -> 0 | AF6: =+I8 -> 0
G7: total machine hours per week | H7: =+Sheet1!X23 -> 0 | I7: =+Sheet1!AB23 -> 0 | N7: total machine hours per week | O7: =+H7 -> 0 | P7: =+I7 -> 0 | R7: full burdened labor cost per hour | S7: =+H6 -> 0 | T7: =+I6 -> 0 | V7: cost to dispose of scrap ($/1000) | W7: =+H16 -> 0 | X7: =+I16 -> 0 | Z7: parts cost ( $ / 1,000) | AA7: =+H10/1000 -> 0 | AB7: =+I10/1000 -> 0 | AD7: mold open time | AE7: =+H13 -> 0 | AF7: =+I13 -> 0
G8: weeks per year | H8: =+Sheet1!X22 -> 0 | I8: =+Sheet1!AB22 -> 0 | K8: SAVINGS DUE TO MOLD DAMAGE | L8: =+AA18 ->  | N8: weeks per year | O8: =+H8 -> 0 | P8: =+I8 -> 0 | R8: labor hours per year | S8: =+S4*S5*S6 -> 0 | T8: =+T4*T5*T6 -> 0 | V8: number of cavities | W8: =+H9 -> 0 | X8: =+I9 -> 0 | Z8: part sell price ( $ / 1,000) | AA8: =+H11/1000 -> 0 | AB8: =+I11/1000 -> 0 | AD8: overall cycle time | AE8: =+H14 -> 0 | AF8: =+I14 -> 0
G9: number of cavities | H9: =+Sheet1!X25 -> 0 | I9: =+Sheet1!AB25 -> 0 | K9: SAVINGS DUE TO SCRAP | L9: =+X23 ->  | N9: overall cycle time | O9: =+H14 -> 0 | P9: =+I14 -> 0 | R9: labor dollars per year | S9: =+S7*S8 -> 0 | T9: =+T7*T8 -> 0 | V9: total machine hours per week | W9: =+H7 -> 0 | X9: =+I7 -> 0 | Z9: number of cavities | AA9: =+H9 -> 0 | AB9: =+AA9 -> 0 | AD9: increased open machine time | AF9: =1-(+AF8/AE8) -> 
G10: parts cost each ($ / 1,000) | H10: =+Sheet1!X26 -> 0 | I10: =+Sheet1!AB26 -> 0 | K10: TOTAL LABOR SAVINGS | L10: =+T11 -> 0 | N10: workcell productivity percentage | O10: =+H12 -> 0 | P10: =+I12 -> 0 | V10: weeks per year | W10: =+H8 -> 0 | X10: =+I8 -> 0 | Z10: overall cycle time (seconds) | AA10: =+H14 -> 0 | AB10: =+I14 -> 0 | AD10: dollars per machine week | AF10: =+AF4*AF5 -> 0
G11: part sell price each ($ / 1,000) | H11: =+Sheet1!X27 -> 0 | I11: =+Sheet1!AB27 -> 0 | K11: ADDITIONAL PARTS PROFIT | L11: =+P17 ->  | N11: cycles per hour | O11: =(60*60)/O9 ->  | P11: =(60*60)/P9 ->  | R11: TOTAL LABOR SAVINGS | T11: =+S9-T9 -> 0 | V11: overall cycle time | W11: =+H14 -> 0 | X11: =+I14 -> 0 | Z11: profit per part | AA11: =+AA8-AA7 -> 0 | AB11: =+AB8-AB7 -> 0 | AD11: savings per week | AF11: =+AF9*AF10 -> 
G12: workcell productivity percentage | H12: =+Sheet1!X24 -> 0 | I12: =+Sheet1!AB24 -> 0 | K12: TOTAL SAVINGS | L12: =SUM(L8:L11) ->  | N12: parts per hour | O12: =+O6*O11 ->  | P12: =+P6*P11 ->  | V12: cycles per hour | W12: =(60*60)/W11 ->  | X12: =(60*60)/X11 ->  | Z12: profit per cycle | AA12: =+AA9*AA11 -> 0 | AB12: =+AB9*AB11 -> 0 | AD12: savings per year | AF12: =+AF6*AF11 -> 
G13: mold open time | H13: =+Sheet1!X28 -> 0 | I13: =+Sheet1!AB28 -> 0 | K13: MACHINE UTILIZATION | L13: =+AF14 ->  | N13: parts per year at 100% productivity | O13: =+O7*O8*O12 ->  | P13: =+P7*P8*P12 ->  | V13: parts per hour | W13: =+W8*W12 ->  | X13: =+X8*X12 ->  | Z13: cycles per hour | AA13: =(60*60)/AA10 ->  | AB13: =(60*60)/AB10 -> 
G14: overall cycle time | H14: =+Sheet1!X29 -> 0 | I14: =+Sheet1!AB29 -> 0 | N14: parts per year at workcell productivity | O14: =+O10*O13 ->  | P14: =+P10*P13 ->  | V14: parts per year | W14: =+W9*W10*W13 ->  | X14: =+X9*X10*X13 ->  | Z14: parts per hour | AA14: =+AA6*AA13 ->  | AB14: =+AB6*AB13 ->  | AD14: ADDITIONAL MACHINE UTILIZATION | AF14: =+AF12 -> 
G15: percentage of scrap | H15: =+Sheet1!X30 -> 0 | I15: =+Sheet1!AB30 -> 0 | K15: PROFIT RESULT AFTER 1 YEAR | L15: =+L12-H28 ->  | N15: part profitability per year | O15: =(+O5-O4)*O14 ->  | P15: =(+P5-P4)*P14 ->  | V15: scrapped parts per year | W15: =+W6*W14 ->  | X15: =+X6*X14 ->  | Z15: lost parts due to mold damage | AA15: =+AA5*AA14 ->  | AB15: =+AB5*AB14 -> 
G16: cost to dispose of scrap ($/1000) | H16: =+Sheet1!X31 -> 0 | I16: =+Sheet1!AB31 -> 0 | K16: PROFIT RESULT AFTER 2 YEARS | L16: =(+L12*2)-H28 ->  | V16: lost profit of scrapped parts per year | W16: =(+W5-W4)*W15 ->  | X16: =(+X5-X4)*X15 ->  | Z16: lost profit due to mold damage | AA16: =+AA11*AA15 ->  | AB16: =+AB11*AB15 -> 
G17: lost production hours due to mold damage | H17: =+Sheet1!X33 -> 0 | I17: =+Sheet1!AB33 -> 0 | K17: PROFIT RESULT AFTER 3 YEARS | L17: =(+L12*3)-H28 ->  | N17: ADDITIONAL PARTS PROFIT | P17: =+P15-O15 ->  | V17: cost to dispose of scrap | W17: =(+W15/1000)*W7 ->  | X17: =(+X15/1000)*X7 -> 
G18: mold damage (dollars) | H18: =+Sheet1!X32 -> 0 | I18: =+Sheet1!AB32 -> 0 | V18: lost production hours due to mold damage | W18: =+H17 -> 0 | X18: =+I17 -> 0 | Z18: TOTAL COST DUE TO MOLD DAMAGE | AA18: =+AA4+AA16 ->  | AB18: =+AB4+AB16 -> 
G19: dollars per machine hour
V20: lost profit due to lost production | W20: =(+W5-W4)*W13*W18 ->  | X20: =(+X5-X4)*X13*X18 -> 
K21: MONTHS TO EXPENDITURE PAYOFF | L21: =+'Graph Data'!J8 -> 
H22: expected
G23: Equipment costs | H23: =+Sheet1!K26 -> 0 | V23: TOTAL COST DUE TO SCRAP | X23: =(+W16+W17+W20)-(X16+X17+X20) -> 
G24: Installation costs | H24: =+Sheet1!K27 -> 0
G25: Facility costs | H25: =+Sheet1!K28 -> 0
G26: Training costs | H26: =+Sheet1!K29 -> 0
G27: Other costs | H27: =+Sheet1!K30 -> 0
G28: TOTAL COSTS | H28: =+Sheet1!K31 -> 0
G31: repair costs | H31: R
G32: decreased scrap | H32: S
G33: labor savings | H33: L
G34: addition product profits | H34: P
G37: tons cf | H37: Q4 -2013 | I37: Q2 -2009
G38: <50 | H38: 39.59 | I38: 37.72
G39: 50-99 | H39: 43.65 | I39: 43.88
G40: 100-299 | H40: 51.02 | I40: 47.86
G41: 300-499 | H41: 59.69 | I41: 55.82
G42: 500-749 | H42: 76.86 | I42: 70.46
G43: 750-999 | H43: 107.59 | I43: 88.61
G44: 1000-1499 | H44: 174.31 | I44: 103.98
G45: 1500-1999 | H45: 214.21 | I45: 141.59
G46: 2000-2999 | H46: 331.54 | I46: 274.98
G47: 3000+ | H47: 416.94 | I47: 339.29
G50: 4th qtr 2013 Plastics Technology
N105: 4177despairmt

Sheet Macros (hidden)
C1: 4177despairmt
B3: Clear_Text_Data | H3: Reset_Calculations
C5: F6:W6 | D5: 'delete' | I5: K26:O26 | J5: 'delete'
C6: F7:W7 | D6: 'delete' | I6: K27:O27 | J6: 'delete'
C7: F8:W8 | D7: 'delete' | I7: K28:O28 | J7: 'delete'
C8: F9:W9 | D8: 'delete' | I8: K29:O29 | J8: 'delete'
C9: F10:W10 | D9: 'delete' | I9: K30:O30 | J9: 'delete'
C10: F12:P12 | D10: 'delete' | I10: X19:AA19 | J10: 'delete'
C11: F13:P13 | D11: 'delete' | I11: X20:AA20 | J11: 'delete'
C12: S12:W12 | D12: 'delete' | I12: X21:AA21 | J12: 'delete'
C13: S13:W13 | D13: 'delete' | I13: X22:AA22 | J13: 'delete'
C14: I15:W15 | D14: 'delete' | I14: X23:AA23 | J14: '=+X19*X20'
C15: I16:W16 | D15: 'delete' | I15: X24:AA24 | J15: 'delete'
C16: AE6:AT7 | D16: 'delete' | I16: X25:AA25 | J16: 'delete'
C17: AE8:AL8 | D17: 'delete' | I17: X26:AA26 | J17: 'delete'
C18: AP8:AT8 | D18: 'delete' | I18: X27:AA27 | J18: 'delete'
C19: AE9:AT9 | D19: 'delete' | I19: X28:AA28 | J19: 'delete'
C20: AE10:AT10 | D20: 'delete' | I20: X29:AA29 | J20: 'delete'
C21: AE11:AT13 | D21: 'delete' | I21: X30:AA30 | J21: 'delete'
C22: AE15:AT15 | D22: 'delete' | I22: X31:AA31 | J22: 'delete'
C23: AE16:AT16 | D23: 'delete' | I23: X32:AA32 | J23: 'delete'
C24: F6:W6 | D24: 'enter' | I24: X33:AA34 | J24: 'delete'
I25: AB19:AE19 | J25: '=+X19'
I26: AB20:AE20 | J26: '=+X20'
I27: AB21:AE21 | J27: '=+X21'
I28: AB22:AE22 | J28: '=+X22'
I29: AB23:AE23 | J29: '=+AB19*AB20'
I30: AB24:AE24 | J30: '=+X24'
I31: AB25:AE25 | J31: '=+X25'
I32: AB26:AE26 | J32: '=+X26'
I33: AB27:AE27 | J33: '=+X27'
I34: AB28:AE28 | J34: 'delete'
I35: AB29:AE29 | J35: '=+X29-(X28-AB28)'
I36: AB30:AE30 | J36: 'delete'
I37: AB31:AE31 | J37: '=+X31'
I38: AB32:AE32 | J38: 'delete'
I39: AB33:AE34 | J39: 'delete'
I40: K26:O26 | J40: 'delete'

Sheet Graph Data (hidden)
B2: month | C2: costs | D2: savings | E2: month | F2: net profit
C3: =+Calcs!H28 -> 0 | D3: =+Calcs!L12 ->  | F3: =+D3-C3 -> 
B4: 1 | D4: =+D3/12 ->  | E4: 1 | F4: =-C3+D4 -> 
B5: 2 | D5: =+D4 ->  | E5: 2 | F5: =+F4+D5 -> 
B6: 3 | D6: =+D5 ->  | E6: 3 | F6: =+F5+D6 ->  | I6: savings per month | J6: =+D3/12 -> 
B7: 4 | E7: 4 | I7: total expenditure | J7: =+C3 -> 0
B8: 5 | E8: 5 | I8: months to payoff | J8: =+J7/J6 -> 
B9: 6 | E9: 6
B10: 7 | E10: 7
B11: 8 | E11: 8 | I11: PROFIT RESULT AFTER 1 YEAR | J11: =+Calcs!L15 -> 
B12: 9 | E12: 9 | I12: PROFIT RESULT AFTER 2 YEARS | J12: =+Calcs!L16 -> 
B13: 10 | E13: 10 | I13: PROFIT RESULT AFTER 3 YEARS | J13: =+Calcs!L17 -> 
B14: 11 | E14: 11
B15: 12 | E15: 12
B16: 13 | E16: 13
B17: 14 | E17: 14 | I17: SAVINGS DUE TO MOLD DAMAGE | J17: =+Calcs!L8 -> 
B18: 15 | E18: 15 | I18: SAVINGS DUE TO SCRAP | J18: =+Calcs!L9 -> 
B19: 16 | E19: 16 | I19: TOTAL LABOR SAVINGS | J19: =+Calcs!L10 -> 0
B20: 17 | E20: 17 | I20: ADDITIONAL PARTS PROFIT | J20: =+Calcs!L11 -> 
B21: 18 | E21: 18
B22: 19 | E22: 19
B23: 20 | E23: 20 | F23: =+F22+D23 -> 
B24: 21 | E24: 21 | H24: 1 | J24: =+J17 ->  | K24: =+J18 ->  | L24: =+J19 -> 0 | M24: =+J20 -> 
B25: 22 | E25: 22
B26: 23 | E26: 23 | H26: 2 | J26: 1000 | K26: 2000 | L26: 20000 | M26: 1000
B27: 24 | E27: 24
B28: 25 | E28: 25
B29: 26 | E29: 26 | H29: Damage | J29: =+J17 -> 
B30: 27 | E30: 27 | H30: Scrap | J30: =+J18 -> 
B31: 28 | E31: 28 | H31: Labor | J31: =+J19 -> 0
B32: 29 | E32: 29 | H32: Yield | J32: =+J20 -> 
B33: 30 | E33: 30
B34: 31 | E34: 31
B35: 32 | E35: 32
B36: 33 | E36: 33
B37: 34 | E37: 34
B38: 35 | E38: 35
B39: 36 | E39: 36 | F39: =+F38+D39 -> 
B40: 37 | E40: 37
B41: 38 | E41: 38
B42: 39 | E42: 39
B43: 40 | E43: 40
B44: 41 | E44: 41
B45: 42 | E45: 42
B46: 43 | E46: 43
B47: 44 | E47: 44
B48: 45 | E48: 45
B49: 46 | E49: 46
B50: 47 | E50: 47
B51: 48 | E51: 48
